Cogmind - Beta 16.1 @@@ ROGUE MODE // 2026.04.16 @ 15:45:50 Player: Maelyn Result: Destroyed by P-80 Master with Gamma Rifle Performance ------------- Evolutions (7) 3500 Regions Visited (12) 2400 Robots Destroyed (92) 460 Value Destroyed (2257) 2257 Prototype IDs (7) 140 Alien Tech Used (0) 0 Bonus (1552) 1552 TOTAL SCORE: 10309 Bonus ------- High Alert Combat Kills 64 Follower Combat Kills 988 Entered DSFs 500 Cogmind --------- Core Integrity 0/1300 Matter 300/300 Energy 87/100 System Corruption 28% Temperature Cool (0) Movement Core (50) Location -3/Research Parts ------- > --- POWER (2) -------- (None) > --- PROPULSION (6) --- (None) > --- UTILITY (11) ----- Advanced Signal Interpreter System Shield > --- WEAPON (2) ------- (None) > --- INVENTORY (5) ---- Centrium Greatsword Peak State ------------ > --- POWER ------------ Micro Fission Core Micro Fission Core > --- PROPULSION ------- Improved Flight Unit Impulse Thruster Impulse Thruster Impulse Thruster Impulse Thruster Impulse Thruster > --- UTILITY ---------- Experimental Optical Array Improved Signal Interpreter IFF Parser Transmission Jammer ECM Suite Hardened Medium Armor Plating Graphene Brace System Shield Authchip [Propulsion] > --- WEAPON ----------- Heavy Beamcaster Heavy Beamcaster > --- INVENTORY -------- Nuclear Pulse Thruster Advanced Power Amplifier Triangulator Long-range Proton Cannon Phase Cannon [Rating: 102] Favorites ----------- Power Light Ion Engine Engine Light Ion Engine Power Core Micro Fission Core Propulsion Light Treads Treads Light Treads Leg Aluminum Leg Hover Unit Combat Airjet Flight Unit Improved Flight Unit Utility Improved Signal Interpreter Device Structural Scanner Storage Medium Storage Unit Processor Improved Signal Interpreter Hackware Hacking Suite Protection Utility Shielding Weapon Beam Rifle Energy Gun Beam Rifle Energy Cannon Beam Cannon Ballistic Gun Light Assault Rifle Ballistic Cannon Assault Cannon Impact Weapon Hammer Slashing Weapon Katana Build | -11 -10 -10 -9 -8 -7 -6 -5 -5 -5 -5 -4 -3 ------- Run | Yrd Mat Min Mat Mat Fac Fac Fac Was Fac DSF Fac Res Slots Evolved 14 | . . . 2 2 2 2 2 . . . 2 2 Power 1 | . . . . . . . . . . . 1 . Propulsion 4 | . . . 1 1 1 . . . . . 1 . Utility 9 | . . . 1 1 1 2 2 . . . . 2 Weapon . | . . . . . . . . . . . . . Parts Attached 115 | 4 4 2 20 18 15 12 3 6 . 13 6 12 Power 16 | 1 . . 5 2 4 2 . . . 1 1 . Engine 11 | 1 . . 4 2 3 1 . . . . . . Core 5 | . . . 1 . 1 1 . . . 1 1 . Reactor . | . . . . . . . . . . . . . Propulsion 36 | 2 . . 5 5 6 5 1 . . 7 1 4 Treads 10 | 2 . . 5 3 . . . . . . . . Leg 2 | . . . . 2 . . . . . . . . Wheel . | . . . . . . . . . . . . . Hover 8 | . . . . . . 5 1 . . . . 2 Flight 16 | . . . . . 6 . . . . 7 1 2 Utility 39 | 1 2 2 3 6 4 3 . 4 . 5 4 5 Device 16 | . . 1 2 2 2 . . 1 . 4 1 3 Storage 5 | 1 1 1 1 . . 1 . . . . . . Processor 4 | . . . . 1 . 1 . . . . 1 1 Hackware 6 | . . . . . 1 1 . . . 1 2 1 Protection 8 | . 1 . . 3 1 . . 3 . . . . Artifact . | . . . . . . . . . . . . . Weapon 24 | . 2 . 7 5 1 2 2 2 . . . 3 Energy Gun 12 | . . . 5 3 1 . . 2 . . . 1 Energy Cannon 5 | . . . 1 . . 2 2 . . . . . Ballistic Gun 2 | . 2 . . . . . . . . . . . Ballistic Cannon 1 | . . . . 1 . . . . . . . . Launcher . | . . . . . . . . . . . . . Special Weapon . | . . . . . . . . . . . . . Impact Weapon 1 | . . . 1 . . . . . . . . . Slashing Weapon 3 | . . . . 1 . . . . . . . 2 Piercing Weapon . | . . . . . . . . . . . . . Special Melee Weapon . | . . . . . . . . . . . . . Unidentified Prototypes 7 | . . . 2 1 2 . . . . . 1 1 Parts Lost 58 | . . 1 5 9 8 7 . . . . 8 20 Power 7 | . . . 2 2 . 1 . . . . 1 1 Propulsion 17 | . . . 1 3 3 1 . . . . 2 7 Utility 22 | . . 1 . 2 3 3 . . . . 4 9 Weapon 12 | . . . 2 2 2 2 . . . . 1 3 Highest Loss Streak 20 | . . 1 2 3 6 7 . . . . 8 20 To Critical Strikes 1 | . . . . . . 1 . . . . . . Average Backups 7 | 3 6 9 9 12 4 4 4 4 5 4 4 . Power . | . 1 1 . . . 1 . . . . . . Propulsion 2 | . 2 2 2 5 1 3 3 3 3 1 . . Utility 3 | . 2 5 4 5 1 . 1 . . . 3 . Weapon 1 | 1 1 1 1 1 1 . . 1 2 2 . . Tool/Special . | . . . . . . . . . . . . . Unused Backups 17 | . . 1 11 1 2 1 . . . 1 . . Power 1 | . . . . . 1 . . . . . . . Propulsion 8 | . . . 7 . . . . . . 1 . . Utility 4 | . . . 2 1 1 . . . . . . . Weapon 4 | . . 1 2 . . 1 . . . . . . Tool/Special . | . . . . . . . . . . . . . Average Slot Usage (%) 88 | . 86 94 93 76 97 92 55 81 88 91 96 51 Engine 7 | . 14 14 9 6 5 4 . . . . . . Core 1 | . . . . . 1 1 1 5 5 5 9 3 Treads 15 | . 28 28 30 13 . . . . . . . . Leg 1 | . . . . 10 . . . . . . . . Hover 3 | . . . . . . 26 23 23 23 5 . . Flight 7 | . . . . . 36 4 . . . 21 30 11 Device 12 | . . 3 21 8 8 12 . 4 5 14 19 14 Storage 8 | . 14 14 11 9 . 6 5 5 5 5 1 3 Processor 4 | . . . . 5 7 12 11 11 11 11 10 8 Hackware 2 | . . . . . 6 4 . . . . 9 7 Protection 4 | . 1 5 . 5 11 6 5 16 23 13 4 . Energy Gun 7 | . . . 14 8 6 . . 7 11 11 9 . Energy Cannon 2 | . . . 4 . . 9 7 3 . . . . Ballistic Gun 5 | . 27 28 . . . . . . . . . . Slashing Weapon 1 | . . . . 5 6 . . . . . . . Peak Build Rating 102 | 4 7 9 20 24 42 60 51 66 66 83 102 68 Average Rating 32 | 3 6 8 17 18 36 54 42 61 66 71 96 57 On Entrance 32 | . 4 7 9 15 24 24 31 51 66 66 82 45 Avg Prop Armor Cover (%) 7 | . . . 9 10 . 1 . . . . 7 12 Naked Turns . | . . . . . . . . . . . . . Heaviest Build 47 | 8 19 19 33 38 32 34 28 46 46 47 37 29 Greatest Support 66 | 40 40 40 66 42 25 60 56 56 56 56 40 14 Greatest Overweight (x) 10 | . . . . 10 1 1 . . . 2 3 5 Average Overweight (x) . | . . . . . . . . . . . . 2 Largest Inventory Capacity 15 | 8 10 10 15 15 15 5 5 5 5 5 5 5 Average Capacity 8 | 6 9 10 10 15 5 5 5 5 5 5 5 5 Most Carried 15 | 6 8 10 10 15 14 5 5 5 5 5 5 4 Average Carried 7 | 3 6 9 9 12 4 4 4 4 5 4 4 . Final Capacity 15 | 8 10 10 15 15 5 5 5 5 5 5 5 5 Final Carried 14 | 6 7 10 10 14 3 5 4 5 5 5 4 2 Class Distribution -------------------- 48% | Mutant 19% | Scavenger-Mutant 9% | Scout 9% | Sprinter 7% | Hacker-Mutant 4% | Infiltrator-Sprinter Dominant Class ---------------- Mutant | -10/Materials Mutant | -10/Mines Mutant | -9/Materials Scavenger-Mutant | -8/Materials Sprinter | -7/Factory Scout | -6/Factory Mutant | -5/Factory Mutant | -5/Waste Mutant | -5/Factory Infiltrator-Sprinter | -5/DSF Infiltrator-Sprinter | -4/Factory Hacker-Mutant | -3/Research Resources | -11 -10 -10 -9 -8 -7 -6 -5 -5 -5 -5 -4 -3 ----------- Run | Yrd Mat Min Mat Mat Fac Fac Fac Was Fac DSF Fac Res Matter Collected 1791 | 67 61 286 264 300 168 111 . 102 . 110 279 43 Remotely . | . . . . . . . . . . . . . Salvage Created 3193 | . 149 143 1658 607 263 73 . . . . 230 70 Parts 182 | . 11 7 93 34 18 3 . . . . 10 6 Haulers Intercepted 9 | . 1 . 6 . 1 . . . . . 1 . Recyclers Shooed . | . . . . . . . . . . . . . Parts Field Recycled . | . . . . . . . . . . . . . Retrieved Matter . | . . . . . . . . . . . . . Parts Self-Destructed . | . . . . . . . . . . . . . Prevented . | . . . . . . . . . . . . . Parts Restored . | . . . . . . . . . . . . . Kills | -11 -10 -10 -9 -8 -7 -6 -5 -5 -5 -5 -4 -3 ------- Run | Yrd Mat Min Mat Mat Fac Fac Fac Was Fac DSF Fac Res Combat Hostiles Destroyed 60 | . 2 4 30 15 5 1 . . . . 2 1 Melee 13 | . . . . 7 5 . . . . . . 1 Guns 28 | . 2 4 16 4 . . . . . . 2 . Cannons 14 | . . . 11 3 . . . . . . . . AOE 1 | . . . 1 . . . . . . . . . Classes Destroyed 13 | . 4 2 4 2 1 . . . . . . . Worker 9 | . 1 1 5 1 . 1 . . . . . . Builder 2 | . . . . 1 1 . . . . . . . Tunneler 2 | . . 1 . . 1 . . . . . . . Hauler 9 | . 1 . 6 . 1 . . . . . 1 . Recycler 2 | . . . 1 1 . . . . . . . . Operator 2 | . 1 . 1 . . . . . . . . . Watcher 7 | . . . 5 1 1 . . . . . . . Swarmer 23 | . . . 12 7 4 . . . . . . . Grunt 16 | . 2 3 9 2 . . . . . . . . Sentry 15 | . . . 9 5 . . . . . . 1 . Hunter 1 | . . . . 1 . . . . . . . . Programmer 4 | . . . . . 1 1 . . . . 1 1 Assembled 1 | . . 1 . . . . . . . . . . Best Kill Streak 5 | . 2 1 5 3 4 1 . . . . 1 1 Combat Bots Only 4 | . 2 1 4 3 3 1 . . . . 1 1 Max Kills in Single Turn 2 | . 1 1 2 1 1 1 . . . . 1 1 Gunslinging . | . . . . . . . . . . . . . Exploded 1 | . . . 1 . . . . . . . . . Melee 1 | . . . . 1 1 . . . . . . 1 Uniques/NPCs Destroyed . | . . . . . . . . . . . . . Combat | -11 -10 -10 -9 -8 -7 -6 -5 -5 -5 -5 -4 -3 -------- Run | Yrd Mat Min Mat Mat Fac Fac Fac Was Fac DSF Fac Res Hostile Shots Fired 787 | . 24 25 169 169 69 110 . . . . 41 180 Missed 271 | . 8 3 56 57 28 49 . . . . 7 63 Hits 516 | . 16 22 113 112 41 61 . . . . 34 117 Melee 1 | . . . . . . . . . . . 1 . Projectile 515 | . 16 22 113 112 41 61 . . . . 33 117 AOE 1 | . . . . 1 . . . . . . . . Critical Strikes 29 | . . 2 3 6 3 4 . . . . 4 7 Actively Blocked 5 | . . . . . . 1 . . . . 3 1 Part Disruptions 1 | . . . . . . . . . . . . 1 Damage Taken 8546 | . 219 290 1352 1543 656 971 . . . . 934 2581 Core 2967 | . 76 78 265 415 207 233 . . . . 377 1316 Absorbed by Shields 174 | . . . . . . . . . . . . 174 Redirected to Shielding 48 | . . . . . 15 33 . . . . . . Regen/Repaired (Parts) 240 | . . . . 2 26 . . 38 . . 174 . Core Remaining (%) 63 | 100 . 38 33 24 70 72 . . . 100 67 . Volleys Fired 273 | . 19 18 137 59 . 23 . . . . 17 . Largest 2 | . 2 2 2 2 . 2 . . . . 2 . Hottest 162 | . 40 40 116 93 . 140 . . . . 162 . Shots Fired 485 | . 38 36 267 70 . 46 . . . . 28 . Gun 339 | . 38 36 194 43 . . . . . . 28 . Cannon 146 | . . . 73 27 . 46 . . . . . . Launcher . | . . . . . . . . . . . . . Special . | . . . . . . . . . . . . . Kinetic 105 | . 38 36 4 27 . . . . . . . . Thermal 357 | . . . 263 43 . 23 . . . . 28 . Explosive . | . . . . . . . . . . . . . Electromagnetic 23 | . . . . . . 23 . . . . . . Robot Hit Streak 11 | . 9 7 10 10 . 11 . . . . 5 . Robot Miss Streak 9 | . 9 3 6 4 . 2 . . . . 2 . Penetration Max . | . . . . . . . . . . . . . Secondary Targets 1 | . . . 1 . . . . . . . . . Max Gunslinging Chain 1 | . . . 1 . . . . . . . . . Shots Hit Robots 312 | . 19 27 149 63 26 5 . . . . 20 3 Core Hits 125 | . 11 10 65 22 9 1 . . . . 6 1 Critical Kills 1 | . . . . . . 1 . . . . . . Critical Parts Destroyed . | . . . . . . . . . . . . . Critical Strikes 21 | . . . 13 3 . 1 . . . . 3 1 Burn 18 | . . . 13 2 . . . . . . 3 . Meltdown 1 | . . . . . . 1 . . . . . . Blast 1 | . . . . 1 . . . . . . . . Sever 1 | . . . . . . . . . . . . 1 Melee Attacks 98 | . . . 1 34 59 . . . . . . 4 Impact 1 | . . . 1 . . . . . . . . . Slashing 97 | . . . . 34 59 . . . . . . 4 Piercing . | . . . . . . . . . . . . . Sneak Attacks 9 | . . . . 5 4 . . . . . . . Combat Hostiles . | . . . . . . . . . . . . . Follow-up Attacks . | . . . . . . . . . . . . . Damage Inflicted 6697 | . 193 320 2483 1648 1098 188 . . . . 516 251 Guns 2946 | . 189 299 1582 361 . . . . . . 515 . Cannons 1256 | . . . 689 395 . 172 . . . . . . Explosions 86 | . . . 86 . . . . . . . . . Melee 2206 | . . . . 892 1098 . . . . . . 216 Ramming 203 | . 4 21 126 . . 16 . . . . 1 35 Kinetic 917 | . 189 299 34 395 . . . . . . . . Thermal 3176 | . . . 2237 361 . 63 . . . . 515 . Explosive . | . . . . . . . . . . . . . Electromagnetic 195 | . . . 86 . . 109 . . . . . . Impact . | . . . . . . . . . . . . . Slashing 2206 | . . . . 892 1098 . . . . . . 216 Piercing . | . . . . . . . . . . . . . Highest Corruption 27 | . . . . 3 3 1 . . . . 3 27 Average Corruption 3 | . . . . 3 1 1 . . . . 2 11 Corruption Purged . | . . . . . . . . . . . . . Corruption Blocked . | . . . . . . . . . . . . . Effects 20 | . . . . 14 1 . . . . . . 5 Message Errors 3 | . . . . 1 . . . . . . . 2 Matter Fused 6 | . . . . 4 1 . . . . . . 1 Heat Flow Errors 2 | . . . . 2 . . . . . . . . Energy Discharges 2 | . . . . 2 . . . . . . . . Parts Rejected 2 | . . . . 1 . . . . . . . 1 Data Loss (minor) 2 | . . . . 2 . . . . . . . . Data Loss (major) 1 | . . . . 1 . . . . . . . . Alerts 1 | . . . . 1 . . . . . . . . Misdirections 1 | . . . . . . . . . . . . 1 Overload Shots . | . . . . . . . . . . . . . Overflow Damage 175 | . . . 6 74 85 . . . . . . 10 Projectiles 7 | . . . 3 4 . . . . . . . . Explosions 3 | . . . 3 . . . . . . . . . Melee 165 | . . . . 70 85 . . . . . . 10 Knockbacks 4 | . . . 1 2 . . . . . . . 1 Impact 2 | . . . 1 . . . . . . . . 1 Kinetic 1 | . . . . 1 . . . . . . . . Secondary 1 | . . . . 1 . . . . . . . . Self-Inflicted Damage 65 | . . . 42 . . 7 . . . . . 16 Shots 1 | . . . 1 . . . . . . . . . Rammed 41 | . 1 4 20 . . 4 . . . . 1 11 Targets Rammed 48 | . 2 6 24 . . 4 . . . . 1 11 Kicked . | . . . . . . . . . . . . . Crushed 7 | . 1 2 4 . . . . . . . . . Highest Temperature 729 | . 18 71 327 256 1 349 . . . . 729 . Average Temperature 136 | . 10 25 50 62 1 106 . . . . 260 . Received Heat Transfer 1392 | . 123 162 444 531 24 72 . . . . 36 . Effects 73 | . . . . 2 . 1 . . . . 70 . Shutdowns 22 | . . . . . . . . . . . 22 . Energy Bleed 7 | . . . . 1 . 1 . . . . 5 . Interference 13 | . . . . 1 . . . . . . 12 . Matter Decay 5 | . . . . . . . . . . . 5 . Short Circuit 8 | . . . . . . . . . . . 8 . Damage (minor) 8 | . . . . . . . . . . . 8 . Damage (major) 8 | . . . . . . . . . . . 8 . Damage (core) 2 | . . . . . . . . . . . 2 . Siege Activations . | . . . . . . . . . . . . . Martial Activations . | . . . . . . . . . . . . . Shielding Activations . | . . . . . . . . . . . . . Robots Disrupted . | . . . . . . . . . . . . . Combat Hostiles . | . . . . . . . . . . . . . Robots Corrupted 1 | . . . . 1 . . . . . . . . Combat Hostiles 1 | . . . . 1 . . . . . . . . Parts Fried 3 | . . . . 3 . . . . . . . . Impact Corruptions 1 | . . . . 1 . . . . . . . . Robots Melted 3 | . . . 2 . . 1 . . . . . . Combat Hostiles 3 | . . . 2 . . 1 . . . . . . Parts Melted 28 | . . . 16 1 . 7 . . . . 4 . Heat Transferred 8473 | . . . 6364 1073 . 74 . . . . 962 . Parts Sabotaged 3 | . . . . . . . . . . . 3 . Parts Stolen . | . . . . . . . . . . . . . Parts Stripped . | . . . . . . . . . . . . . Power Chain Reactions . | . . . . . . . . . . . . . Alert | -11 -10 -10 -9 -8 -7 -6 -5 -5 -5 -5 -4 -3 ------- Run | Yrd Mat Min Mat Mat Fac Fac Fac Was Fac DSF Fac Res Maximum Alert Level 3 | . . . 2 . . . . . . 1 3 1 Low Security (%) 78 | 100 100 100 59 100 100 100 100 100 100 80 5 65 Level 1 11 | . . . 29 . . . . . . 19 10 34 Level 2 6 | . . . 11 . . . . . . . 40 . Level 3 3 | . . . . . . . . . . . 43 . Level 4 . | . . . . . . . . . . . . . Level 5 . | . . . . . . . . . . . . . High Security . | . . . . . . . . . . . . . Max Security . | . . . . . . . . . . . . . Sterilizations 1 | . . . . . . . . . . 1 . . Peak Influence 917 | . 55 40 423 195 192 93 6 . . 347 917 295 Initial 295 | . . . . 160 44 49 6 . . . 182 295 Average 147 | . 7 1 208 130 57 13 1 . . 143 640 147 Influence Increases 3806 | . 82 80 1081 501 353 185 . . . 467 1027 30 Destroy 0b10 Robot/C 1700 | . 40 60 600 300 100 20 . . . 180 380 20 Destroy 0b10 Robot/NC 170 | . 15 10 90 20 20 5 . . . . 10 . Destroy Leader 434 | . 12 10 172 82 24 10 . . . 30 84 10 Allied During Kill 620 | . . . . . . . . . . 210 410 . Successful Hack 70 | . . . 16 33 13 8 . . . . . . Disable Machine 120 | . . . 60 15 15 . . . . 15 15 . Destroy Structure 122 | . . . 23 6 16 7 . . . 32 38 . Partial Spotted 60 | . . . . . 45 . . . . . 15 . Lose Combat Pursuer 510 | . 15 . 120 45 120 135 . . . . 75 . Influence Decreases 3806 | . 82 80 700 785 348 273 14 . . 120 811 593 Entered New Map 768 | . . . . 221 53 53 8 . . . 165 268 Time Decay 2221 | . 82 80 650 474 215 150 6 . . . 326 238 Lost Part 457 | . . . 50 90 80 70 . . . . 80 87 Lost Ally 360 | . . . . . . . . . . 120 240 . Squads Dispatched 16 | . . . 1 1 3 5 . . . 1 4 1 Investigation 2 | . . . . . 1 1 . . . . . . Extermination 6 | . . . . . 1 3 . . . . 1 1 Reinforcement 5 | . . . 1 . 1 1 . . . 1 1 . Assault 2 | . . . . . . . . . . . 2 . Garrison 1 | . . . . 1 . . . . . . . . Intercept . | . . . . . . . . . . . . . Searches Triggered . | . . . . . . . . . . . . . Construction Impeded . | . . . . . . . . . . . . . Haulers Reinforced 2 | . . . . . 1 . . . . . 1 . Active Scanning Responses . | . . . . . . . . . . . . . Cargo Convoy Interrupts . | . . . . . . . . . . . . . Stealth | -11 -10 -10 -9 -8 -7 -6 -5 -5 -5 -5 -4 -3 --------- Run | Yrd Mat Min Mat Mat Fac Fac Fac Was Fac DSF Fac Res Distress Signals 10 | . 1 1 3 2 1 . . . . . 2 . Communications Jammed . | . . . . . . . . . . . . . Distress Signals . | . . . . . . . . . . . . . Times Spotted 175 | . 14 6 52 35 23 19 . . . 3 18 5 Peak Tracking Total 9 | . 5 2 5 6 5 6 . . . 2 9 5 Tactical Retreats 18 | . 1 . 6 2 3 4 . . . . 2 . ECM-based Alert Blocks 2 | . . . . . . 2 . . . . . . Traps | -11 -10 -10 -9 -8 -7 -6 -5 -5 -5 -5 -4 -3 ------- Run | Yrd Mat Min Mat Mat Fac Fac Fac Was Fac DSF Fac Res Traps Triggered 5 | . . . 2 . . 1 1 . . 1 . . Indirectly . | . . . . . . . . . . . . . Trap Hack Attempts . | . . . . . . . . . . . . . Triggered . | . . . . . . . . . . . . . Disarmed . | . . . . . . . . . . . . . Reprogrammed . | . . . . . . . . . . . . . Reused . | . . . . . . . . . . . . . Traps Extracted . | . . . . . . . . . . . . . Installed . | . . . . . . . . . . . . . Triggered . | . . . . . . . . . . . . . Machines | -11 -10 -10 -9 -8 -7 -6 -5 -5 -5 -5 -4 -3 ---------- Run | Yrd Mat Min Mat Mat Fac Fac Fac Was Fac DSF Fac Res Machines Disabled 8 | . . . 4 1 1 . . . . 1 1 . Max in Single Turn 2 | . . . 2 1 1 . . . . . . . Garrison Access 2 | . . . . 1 . . . . . . 1 . Machines Repaired . | . . . . . . . . . . . . . Machines Dismantled . | . . . . . . . . . . . . . Machines Sabotaged . | . . . . . . . . . . . . . Overloaded Fab Kills . | . . . . . . . . . . . . . Hacking | -11 -10 -10 -9 -8 -7 -6 -5 -5 -5 -5 -4 -3 --------- Run | Yrd Mat Min Mat Mat Fac Fac Fac Was Fac DSF Fac Res Machines Accessed 19 | . 1 . 4 3 6 2 . . 1 . 2 . Terminals 11 | . . . 3 1 3 2 . . 1 . 1 . Fabricators . | . . . . . . . . . . . . . Repair Stations 2 | . . . . 1 1 . . . . . . . Recycling Units 3 | . 1 . 1 . 1 . . . . . . . Scanalyzers . | . . . . . . . . . . . . . Garrison Access 3 | . . . . 1 1 . . . . . 1 . Total Hacks 41 | . 1 . 8 6 17 3 . . 2 . 4 . Successful 26 | . 1 . 7 5 9 1 . . 1 . 2 . Failed 15 | . . . 1 1 8 2 . . 1 . 2 . Catastrophic 3 | . . . . . 1 2 . . . . . . Database Lockouts . | . . . . . . . . . . . . . Manual 21 | . . . 6 3 6 3 . . . . 3 . Terminals 24 | . . . 7 3 6 3 . . 2 . 3 . Fabricators . | . . . . . . . . . . . . . Repair Stations 7 | . . . . 2 5 . . . . . . . Recycling Units 6 | . 1 . 1 . 4 . . . . . . . Scanalyzers . | . . . . . . . . . . . . . Garrison Access 4 | . . . . 1 2 . . . . . 1 . Terminal Hacks 5 | . . . 2 . 1 1 . . 1 . . . Open DSF 1 | . . . . . . . . . 1 . . . Hauler Manifests 1 | . . . 1 . . . . . . . . . Registered Components 3 | . . . 1 . 1 1 . . . . . . Fabricator Hacks . | . . . . . . . . . . . . . Repair Station Hacks 6 | . . . . 2 4 . . . . . . . Scan Component 3 | . . . . 1 2 . . . . . . . Repair 3 | . . . . 1 2 . . . . . . . Recycling Unit Hacks 3 | . 1 . 1 . 1 . . . . . . . Report Inventory 3 | . 1 . 1 . 1 . . . . . . . Scanalyzer . | . . . . . . . . . . . . . Garrison Access Hacks 2 | . . . . 1 . . . . . . 1 . Seal Access 2 | . . . . 1 . . . . . . 1 . Unauthorized Hacks 10 | . . . 4 2 3 . . . . . 1 . Terminals 10 | . . . 4 2 3 . . . . . 1 . Botnet 8 | . . . 3 1 3 . . . . . 1 . Operators 2 | . . . 1 1 . . . . . . . . Fabricators . | . . . . . . . . . . . . . Repair Stations . | . . . . . . . . . . . . . Recycling Units . | . . . . . . . . . . . . . Scanalyzers . | . . . . . . . . . . . . . Garrison Access . | . . . . . . . . . . . . . Data Cores Recovered 1 | . 1 . . . . . . . . . . . Used . | . . . . . . . . . . . . . Hacking Detections 11 | . . . 1 2 5 2 . . . . 1 . Full Trace Events 2 | . . . . . 1 1 . . . . . . Feedback Events . | . . . . . . . . . . . . . Feedback Blocked . | . . . . . . . . . . . . . Robot Schematics Acquired . | . . . . . . . . . . . . . Robots Built . | . . . . . . . . . . . . . Authchips . | . . . . . . . . . . . . . Time . | . . . . . . . . . . . . . Total Robot Build Rating . | . . . . . . . . . . . . . Part Schematics Acquired . | . . . . . . . . . . . . . Parts Built . | . . . . . . . . . . . . . Authchips . | . . . . . . . . . . . . . Time . | . . . . . . . . . . . . . Total Part Build Rating . | . . . . . . . . . . . . . Part Studies Acquired . | . . . . . . . . . . . . . Parts Repaired 3 | . . . . 1 2 . . . . . . . Time 184 | . . . . 38 146 . . . . . . . Parts Recycled . | . . . . . . . . . . . . . Recycled Matter . | . . . . . . . . . . . . . Retrieved Matter . | . . . . . . . . . . . . . Retrieved Components . | . . . . . . . . . . . . . Parts Scanalyzed . | . . . . . . . . . . . . . Part Schematics Acquired . | . . . . . . . . . . . . . Parts Damaged . | . . . . . . . . . . . . . Bothacking | -11 -10 -10 -9 -8 -7 -6 -5 -5 -5 -5 -4 -3 ------------ Run | Yrd Mat Min Mat Mat Fac Fac Fac Was Fac DSF Fac Res Used RIF Installer . | . . . . . . . . . . . . . Robots Hacked . | . . . . . . . . . . . . . Non-combat . | . . . . . . . . . . . . . Combat . | . . . . . . . . . . . . . Robot Hacks Applied . | . . . . . . . . . . . . . Relay Couplers Released . | . . . . . . . . . . . . . Fabnet Peak Effective % . | . . . . . . . . . . . . . Robots Rewired . | . . . . . . . . . . . . . Allies Hacked . | . . . . . . . . . . . . . Hacks Repelled . | . . . . . . . . . . . . . Allies | -11 -10 -10 -9 -8 -7 -6 -5 -5 -5 -5 -4 -3 -------- Run | Yrd Mat Min Mat Mat Fac Fac Fac Was Fac DSF Fac Res Total Allies 20 | . . . . . . . . 20 . . . . Largest Group 20 | . . . . . . . . 20 20 20 14 . Highest-Rated Group 769 | . . . . . . . . 769 769 769 594 . Highest-Rated Ally 50 | . . . . . . . . 50 50 50 50 . Initial Warlord ECA Mod 9 | . . . . . . . . . . . 9 8 Total Orders . | . . . . . . . . . . . . . Ally Attacks 136 | . . . . . . . . . . 58 78 . Total Damage 4462 | . . . . . . . . . . 1652 2810 . Kills 28 | . . . . . . . . . . 9 19 . Allies Corrupted . | . . . . . . . . . . . . . Allies Melted . | . . . . . . . . . . . . . Intel | -11 -10 -10 -9 -8 -7 -6 -5 -5 -5 -5 -4 -3 ------- Run | Yrd Mat Min Mat Mat Fac Fac Fac Was Fac DSF Fac Res Active Infowar (turns) 6425 | . . 285 2799 286 765 903 92 211 35 215 402 432 Optics 1678 | . . . . . . 860 92 211 35 215 265 . Sensors 1714 | . . . . 41 765 895 . . . . . 13 IFF 574 | . . . . . . . . . . 180 394 . Structural 3000 | . . . 2755 245 . . . . . . . . Seismic 623 | . . 285 338 . . . . . . . . . Triangulation 443 | . . . . . . . . . . 24 . 419 Jamming 430 | . . . . . . . . 210 35 173 12 . ECM 17 | . . . . . 1 14 . . . 2 . . Robot Analysis Total . | . . . . . . . . . . . . . Derelict Logs Recovered 1 | . . 1 . . . . . . . . . . Drone Launches . | . . . . . . . . . . . . . Drone Recoveries . | . . . . . . . . . . . . . Exploration | -11 -10 -10 -9 -8 -7 -6 -5 -5 -5 -5 -4 -3 ------------- Run | Yrd Mat Min Mat Mat Fac Fac Fac Was Fac DSF Fac Res Turns Passed 9475 | 68 513 1230 2799 1207 889 903 92 211 35 215 733 580 Spaces Moved 7047 | 38 281 701 1497 498 1526 793 130 231 24 216 846 266 Core 55 | 3 . . . 16 . . . . . . . 36 Treads 2955 | 35 281 701 1497 441 . . . . . . . . Legs 41 | . . . . 41 . . . . . . . . Wheels . | . . . . . . . . . . . . . Hover 1208 | . . . . . . 774 130 231 24 27 . 22 Flight 2788 | . . . . . 1526 19 . . . 189 846 208 Fastest Speed 25 | 50 160 160 145 152 27 34 65 65 65 28 25 37 Average Speed 98 | 151 160 160 149 186 27 69 66 65 65 49 34 201 Slowest Speed 550 | 160 160 160 160 550 97 150 74 65 65 181 250 390 Overloaded Moves . | . . . . . . . . . . . . . Propulsion Burnouts . | . . . . . . . . . . . . . Robots Hopped 16 | . . . . . 14 . . . . . . 2 Potential Cave-ins . | . . . . . . . . . . . . . Cave-ins Triggered . | . . . . . . . . . . . . . Exploration Rate (%) 40 | 4 46 97 90 39 22 22 4 91 2 97 13 5 Regions Visited 12 Branch Regions 1 Pre-discovered Areas . | . . . . . . . . . . . . . Known Exits Taken 4 | . . . . 1 1 1 . . 1 . . . Unknown Exits Taken 5 | 1 1 1 1 . . . . . . . 1 . Scrap Searched 2 | . . 2 . . . . . . . . . . Spaces Dug 25 | . . . 1 2 16 6 . . . . . . Terrain Destroyed 47 | . . . 18 6 16 7 . . . . . . Melee 19 | . . . 1 2 16 . . . . . . . Projectile 11 | . . . . 4 . 7 . . . . . . AOE 17 | . . . 17 . . . . . . . . . Terrain Rammed . | . . . . . . . . . . . . . Walls Destroyed . | . . . . . . . . . . . . . Machines Disabled . | . . . . . . . . . . . . . Actions | -11 -10 -10 -9 -8 -7 -6 -5 -5 -5 -5 -4 -3 --------- Run | Yrd Mat Min Mat Mat Fac Fac Fac Was Fac DSF Fac Res Total 8912 | 47 309 774 1791 651 1895 1100 135 289 43 328 1255 295 Wait 1183 | . . 40 57 31 286 254 . 51 20 70 374 . Move 7004 | 37 280 700 1496 497 1497 792 130 230 23 215 845 262 Hop 16 | . . . . . 14 . . . . . . 2 Pick Up 67 | 6 3 5 22 8 6 4 . . . 6 6 1 Fast Attach 63 | 4 1 1 7 10 3 9 3 5 . 8 1 11 Attach 28 | . 3 . 4 4 4 2 1 1 . 2 3 4 Detach 9 | . 1 . 1 . . 2 . 2 . 2 1 . Swap 45 | . . 1 15 5 11 4 . . . 6 3 . Drop 76 | . . 3 27 3 15 6 1 . . 17 4 . Fire 273 | . 19 18 137 59 . 23 . . . . 17 . Melee 98 | . . . 1 34 59 . . . . . . 4 Ram 16 | . . . . . . 4 . . . . 1 11 Kick . | . . . . . . . . . . . . . Crush 32 | . 2 6 24 . . . . . . . . . Escape Stasis . | . . . . . . . . . . . . . Rewire 2 | . . . . . . . . . . 2 . . Trap . | . . . . . . . . . . . . . Miscellaneous . | . . . . . . . . . . . . . Route ------- -11/Scrapyard -10/Materials (discovered 2 exits: [*Min x2]) -10/Mines (discovered 2 exits: *Mat / [*Sub]) -9/Materials (discovered 5 exits: *Mat x3 / [*Min] / *Sto) -8/Materials -7/Factory -6/Factory -5/Factory -5/Waste -5/Factory -5/DSF -4/Factory (discovered 3 exits: [*Res] / *Upp / [*Ext]) -3/Research History --------- Turn | Location | Event 14 | -11/Scrapyard | Discovered new exit (range 15) 69 | -11/Scrapyard | Entered Materials 115 | -10/Materials | Discovered new exit (range 8) 146 | -10/Materials | Discovered new exit (range 9) 305 | -10/Materials | Build established: Mutant 582 | -10/Materials | Entered Mines 730 | -10/Mines | Learned location of 1 exit from Materials 751 | -10/Mines | Found a damaged Exp. Sensor Array with a note attached 754 | -10/Mines | Found Prototype Device 1093 | -10/Mines | Excavation squad dispatched 1093 | -10/Mines | A large section of the Mines collapsed 1094 | -10/Mines | Core integrity fell below 50% 1203 | -10/Mines | Discovered new exit (range 6) 1761 | -10/Mines | Discovered new exit (range 14) 1789 | -10/Mines | Found DCF Scrap (11 items) 1812 | -10/Mines | Entered Materials 1812 | -9/Materials | Evolved 2 slots: Propulsion x1, Utility x1 1813 | -9/Materials | Identified exit to Storage 2563 | -9/Materials | Discovered new exit (range 5) 3263 | -9/Materials | Discovered new exit (range 15) 3296 | -9/Materials | Build established: Scavenger-Mutant 3867 | -9/Materials | Core integrity fell below 50% 4075 | -9/Materials | Discovered new exit (range 16) 4481 | -9/Materials | Discovered new exit (range 15) 4492 | -9/Materials | Build established: Mutant 4611 | -9/Materials | Entered another Materials area 4611 | -8/Materials | Evolved 2 slots: Propulsion x1, Utility x1 4728 | -8/Materials | Repaired Hacking Suite? 4772 | -8/Materials | Garrison activated, responded to threat 4887 | -8/Materials | Lost 3 parts (1n1u1w) 5046 | -8/Materials | Identified Exp. Sensor Array 5201 | -8/Materials | Core integrity fell below 50% 5430 | -8/Materials | Build established: Scavenger-Mutant 5807 | -8/Materials | Discovered new exit (range 8) 5817 | -8/Materials | Identified exit to Factory 5818 | -8/Materials | Entered Factory 5818 | -7/Factory | Evolved 2 slots: Propulsion x1, Utility x1 5947 | -7/Factory | Repaired Imp. Sensor Array 6058 | -7/Factory | Repaired Faulty Exp. Sensor Array 6120 | -7/Factory | Build established: Sprinter 6479 | -7/Factory | Discovered new exit (range 15) 6706 | -7/Factory | Identified exit to Factory 6707 | -7/Factory | Entered another Factory area 6707 | -6/Factory | Evolved 2 slots: Utility x2 6723 | -6/Factory | Lost 6 parts (3n1u2w) 7021 | -6/Factory | Build established: Scout 7594 | -6/Factory | Discovered new exit (range 22) 7609 | -6/Factory | Identified exit to Factory 7610 | -6/Factory | Entered another Factory area 7610 | -5/Factory | Evolved 2 slots: Utility x2 7633 | -5/Factory | Lost 7 parts (1p1n3u2w) 7702 | -5/Factory | Sucked down chute 7702 | -5/Factory | Entered Waste 7703 | -5/Waste | Joined by Warlord forces that had cleared the area 7844 | -5/Waste | Discovered new exit (range 12) 7855 | -5/Waste | Identified exit to Factory 7904 | -5/Waste | Build established: Mutant 7913 | -5/Waste | Entered Factory 7913 | -5/Factory | Accompanied by 20 allies 7928 | -5/Factory | Identified exit to DSF 7948 | -5/Factory | Entered DSF 7948 | -5/DSF | Accompanied by 20 allies 7973 | -5/DSF | Additional patrols routed to DSF 8079 | -5/DSF | Lost 4 allies 8085 | -5/DSF | Discovered new exit (range 15) 8092 | -5/DSF | Identified exit to Factory 8139 | -5/DSF | Sterilization system engaged 8159 | -5/DSF | Ambient heat levels rising (+10) 8163 | -5/DSF | Entered Factory 8163 | -4/Factory | Accompanied by 14 allies 8163 | -4/Factory | Evolved 2 slots: Power x1, Propulsion x1 8239 | -4/Factory | Discovered new exit (range 11) 8336 | -4/Factory | Discovered new exit (range 22) 8349 | -4/Factory | Build established: Infiltrator-Sprinter 8408 | -4/Factory | Lost 6 allies 8413 | -4/Factory | First assault squad dispatched 8536 | -4/Factory | Discovered new exit (range 15) 8559 | -4/Factory | Identified exit to Upper Caves 8894 | -4/Factory | Lost 8 parts (1p2n4u1w) 8896 | -4/Factory | Entered Research 8896 | -3/Research | Evolved 2 slots: Utility x2 9232 | -3/Research | Build established: Hacker-Mutant 9403 | -3/Research | System corruption reached 10% 9448 | -3/Research | Core integrity fell below 50% 9466 | -3/Research | Core integrity fell below 20% 9476 | -3/Research | Destroyed by P-80 Master with Gamma Rifle Last Messages --------------- 09438_ P-80 Master Gamma Rifle severed. 09440_ Centrium Greatsword destroyed. 09440_ P-80 Master resets P-80 Master, system corruption cleaned. 09441_ Slammed into P-80 Master. 09441_ P-80 Master knocked back. 09444_ Acquired Imp. Antigrav System. 09444_ Gyrokinetic Inverter destroyed. 09445_ Slammed into P-80 Master. 09445_ Destabilizing: System interference. 09445_ Adv. Signal Interpreter temporarily disabled. 09447_ Acquired Gamma Rifle. 09448_ Gamma Rifle destroyed. 09449_ Slammed into P-80 Master. 09450_ Imp. Antigrav System destroyed. 09453_ Acquired Centrium Greatsword. 09457_ System corrupted: Centrium Greatsword rejected. 09458_ Acquired Centrium Greatsword. 09463_ Slammed into P-80 Master. 09469_ Centrium Greatsword destroyed. 09471_ Slammed into P-80 Master. Map ----- +----------------------------------------------------+ | ?????????????????????????????????????????????????? | | ?????????????????????????????????????????????????? | | ?????????????????????????????????????????????????? | | ?????????????????????????????????????????????????? | | ?????????????????????????????????????????????????? | | ?????????????????????????????????????????????????? | | ?????????????????????????????????????????????????? | | ?????????????????????????????????????????????????? | | ?????????????????????????????????????????????????? | | ?????????????????????????????????????????????????? | | ?????????????????????????????????????????????????? | | ?????????????????????????????????????????????????? | | ?????????????????????????????????????????????????? | | ?????????????????????????????????????????????????? | | ?????????????????????????????????????????????????? | | ##???????????????????????????????????????????????? | | +???????????????????????????????????????????????? | | #???????????????????????????????????????????????? | | #?????????????????????#######???????????????????? | | #?????????????????????# #???????????????????? | | #?????????????????????# #???????????????????? | | #?????????????????????# #???????????????????? | | #?????????????????????# #???????????????????? | | #####+############????# !#???????????????????? | | ????# #######?????????????? | | #????#%@[! # #?????????????? | | #????# !p! # #?????????????? | | ########p### #?????????????? | | %[% # #?????????????? | | / #?????????????? | | # #?????????????? | | #### #######+####+#####p # #?????????????? | | ## #??# # ??#p # [ #?????????????? | | ## #### # + + #?????????????? | | ## + # #### #?????????????? | | ## ##### = # #??# #?????????????? | | + #???# # #??# #?????????????? | | ######+##???# # #??#######?????????????? | | ???? ???###############??????????????????????? | | ?? ??????????????????????????????????????? | | # #????????????????????????????????????? | | # #????????????????????????????????????? | | # """ #????????????????????????????????????? | | # """S"" #????????????????????????????????????? | | # """""" #????????????????????????????????????? | | #############????????????????????????????????????? | | | | | | | | | +----------------------------------------------------+ Best States ------------- Heat Dissipation 46 Energy Generation 25 Energy Capacity 800 Matter Stores 300 Matter Capacity 300 Sight Range 23 Robot Scan Range 16 Terrain Scan Density 10 ECM Strength 2 Jamming Range 14 Power Amplification 30 Armor Coverage 675 Utility Shielding 33 Evasion (%) 65 Recoil Reduction 3 Offensive Hacking 14 Defensive Hacking 10 Authchip Count 1 Item Schematics ----------------- None Robot Schematics ------------------ None Fabricated ------------ Nothing Repaired ---------- Hacking Suite | 80% | -8/Materials Imp. Sensor Array | 31% | -7/Factory Exp. Sensor Array | 62% | -7/Factory Studied --------- None Alien Tech Used ----------------- None Achievements -------------- Dangerous Findings Hot Goods I Laugh At Your Crits Infodabbler Window Shopping Challenges ------------ None Game ------ Seed ChipBackupLog Manual? 0 Play Time 01:38:48 Cumulative 60.4 hours Start 2026.04.16 @ 14:08:56 End 2026.04.16 @ 15:45:50 Sessions 1 Manual Loads 0 Difficulty Rogue Special Mode None Game No. 118 Rogue 118 Adventurer 0 Explorer 0 Win Type - Total 0 Types 0/0/0/0/0/0/0/0/0/0 Lore% 15 Gallery% 31 Achievement% 21 Wizard Run 0 Options --------- Layout 0 ASCII 0 Keyboard 1 Movement Vi Keybinds 0 Fullscreen 2 Font 18/T_Terminus Map View 76x50 Zoom Use 0% Tactical HUD 1 Map Filters SHIFT_HUE(5) Filters LOW_CONTRAST(10,2,20)|SHIFT_HUE(5) Steam 1 RUN: b33c1fd8-9c54-4e4c-ba00-e2770d276ff6